bitfinex/quotes_BTCUSD_20250730
["timestamp","ask_amount","ask_price","bid_price","bid_amount"]
[1753886014891,0.36177053,118130.0,118110.0,0.31361]
[1753886015190,0.19046495,118130.0,118110.0,0.06337]
[1753886015416,0.00946546,118120.0,118110.0,0.19429]
[1753886015629,0.01739447,118120.0,118110.0,0.19429]
[1753886015845,0.00892901,118120.0,118110.0,0.31365]
[1753886016063,0.00792901,118120.0,118110.0,0.31365]
[1753886016533,0.02485979,118120.0,118110.0,0.31365]
[1753886018019,0.01639433,118120.0,118110.0,0.31365]
[1753886018239,0.00792901,118120.0,118110.0,0.31365]
[1753886018457,0.00892901,118120.0,118110.0,0.31365]
[1753886018696,0.001,118120.0,118110.0,0.31365]
[1753886019865,0.00946532,118120.0,118110.0,0.31365]
[1753886020085,0.01739305,118120.0,118110.0,0.31365]
[1753886020555,0.00892773,118120.0,118110.0,0.48298367]
[1753886020992,0.00892773,118120.0,118110.0,0.31365]
[1753886021219,0.00892773,118120.0,118110.0,0.56746097]
[1753886021461,0.001,118120.0,118110.0,0.56746097]
[1753886022557,0.001,118120.0,118110.0,0.3981273]
[1753886024399,0.03486256,118120.0,118110.0,0.3981273]
[1753886024632,0.03486256,118120.0,118110.0,0.24706]
[1753886024633,0.57146169,118120.0,118110.0,0.24706]
[1753886024854,0.57146207,118120.0,118110.0,0.1163]
[1753886025086,0.55453079,118120.0,118110.0,0.1163]
[1753886025750,0.37674529,118120.0,118110.0,0.1163]
[1753886025980,0.37674529,118120.0,118110.0,0.15233]
[1753886025981,0.03325555,118120.0,118110.0,0.15233]
[1753886026211,0.02479023,118120.0,118110.0,0.18253]
[1753886026692,0.03325569,118120.0,118110.0,0.18253]
[1753886026889,0.05018697,118120.0,118110.0,0.18253]
[1753886027134,0.05018697,118120.0,118110.0,0.15233]
[1753886027576,0.04172122,118120.0,118110.0,0.15233]
[1753886027862,0.03325627,118120.0,118110.0,0.18333]
[1753886028097,0.02479081,118120.0,118110.0,0.18333]
[1753886028341,0.00893083,118120.0,118110.0,0.18333]
[1753886028794,0.001,118120.0,118110.0,0.18333]
[1753886029019,0.00946546,118120.0,118110.0,0.18333]
[1753886029232,0.02586189,118120.0,118110.0,0.18333]
[1753886030093,0.03432764,118120.0,118110.0,0.18333]
[1753886030303,0.21420286,118120.0,118110.0,0.15233]
[1753886030527,0.21420675,118120.0,118110.0,0.15233]
[1753886031162,0.04488742,118120.0,118110.0,0.15233]
[1753886031583,0.03642153,118120.0,118110.0,0.15233]
[1753886032016,0.04488749,118120.0,118110.0,0.11837]
[1753886032229,0.02848681,118120.0,118110.0,0.11837]
[1753886032446,0.2062721,118120.0,118110.0,0.11837]
[1753886032662,0.02848681,118120.0,118110.0,0.11837]
[1753886033103,0.02002106,118120.0,118110.0,0.14987]
[1753886033333,0.03695277,118120.0,118110.0,0.15293]
[1753886033555,0.0369527,118120.0,118110.0,0.15293]
[1753886034506,0.20627203,118120.0,118110.0,0.11837]
[1753886034722,0.20627203,118120.0,118110.0,0.15193]
[1753886034723,0.00946546,118120.0,118110.0,0.15193]
[1753886034942,0.01793106,118120.0,118110.0,0.18383]
[1753886035394,0.02639681,118120.0,118110.0,0.18383]
[1753886035656,0.2041821,118120.0,118110.0,0.14887]
[1753886035906,0.5789104,118120.0,118110.0,0.13068]
[1753886036181,0.01693228,118110.0,118100.0,0.25411]
[1753886036449,0.02754932,118110.0,118100.0,0.25609]
[1753886036661,0.39032507,118110.0,118100.0,0.25287]
[1753886036887,0.0275491,118110.0,118100.0,0.28427]
[1753886037107,0.01908228,118110.0,118100.0,0.28749]
[1753886037341,0.01693228,118110.0,118100.0,0.28749]
[1753886038151,0.01693228,118110.0,118100.0,0.28849]
[1753886038773,0.14757099,118120.0,118100.0,0.48913688]
[1753886039023,0.15603681,118120.0,118110.0,0.12343]
[1753886039270,0.16450277,118120.0,118110.0,0.12541]
[1753886039520,0.15603681,118120.0,118110.0,0.12541]
[1753886040004,0.59200528,118130.0,118110.0,0.15861]
[1753886040005,0.51325489,118130.0,118110.0,0.15861]
[1753886040237,0.03418993,118130.0,118120.0,0.0651]
[1753886040471,0.03418993,118130.0,118120.0,0.32119]
[1753886040704,0.0426546,118130.0,118120.0,0.32119]
[1753886040930,0.03418993,118130.0,118120.0,0.32119]
[1753886042323,0.03418993,118130.0,118120.0,0.49050933]
[1753886042554,0.03418993,118130.0,118120.0,0.57498663]
[1753886043432,0.03618993,118130.0,118120.0,0.57498663]
[1753886043882,0.03418993,118130.0,118120.0,0.57598663]
[1753886046261,0.0002,118140.0,118130.0,0.22759987]
[1753886046455,0.00034548,118140.0,118130.0,0.97082555]
[1753886046865,0.03478986,118140.0,118130.0,0.97082555]
[1753886047037,0.00034548,118140.0,118130.0,0.99573296]
[1753886047703,0.00034548,118140.0,118130.0,1.40359571]
[1753886048139,0.00034548,118140.0,118130.0,1.40459571]
[1753886048588,0.00034548,118140.0,118130.0,1.40463571]
[1753886048805,0.00034548,118140.0,118130.0,1.40363571]
[1753886049011,0.00034548,118140.0,118130.0,1.27291571]
[1753886049225,0.00034548,118140.0,118130.0,1.40863571]
[1753886049974,0.00034548,118140.0,118130.0,1.41163571]
[1753886050656,0.0002,118150.0,118140.0,0.5982834]
[1753886050870,0.0002,118150.0,118140.0,1.29324006]
[1753886051093,0.0002,118150.0,118140.0,1.16248006]
[1753886051516,0.0002,118150.0,118140.0,1.31068908]
[1753886051724,0.03408338,118150.0,118140.0,0.95637972]
[1753886051922,0.03408338,118150.0,118140.0,1.31268908]
[1753886052339,0.03408338,118150.0,118140.0,1.31668908]
[1753886052748,0.0002,118150.0,118140.0,1.31668908]
[1753886053117,0.0002,118150.0,118140.0,1.18592908]
[1753886053407,0.0002,118150.0,118140.0,1.31664908]
[1753886054293,0.0002,118150.0,118140.0,1.18592908]
[1753886054767,0.0002,118150.0,118140.0,1.29916006]
[1753886055000,0.0002,118150.0,118140.0,0.9448507]
[1753886055218,0.0002,118150.0,118140.0,1.29916006]
[1753886057383,0.0002,118150.0,118140.0,1.29065603]
[1753886057642,0.0002,118150.0,118140.0,1.29912006]
[1753886057909,0.0002,118150.0,118140.0,0.9591202]
[1753886058159,0.0002,118150.0,118140.0,0.97604833]
[1753886058746,0.00235,118150.0,118140.0,0.2106873]
[1753886058966,0.00535,118150.0,118140.0,0.51061797]
[1753886060220,0.00235,118150.0,118140.0,0.5412112]
[1753886060483,0.00235,118150.0,118140.0,0.37997797]
[1753886060728,0.00535,118150.0,118140.0,0.39040797]
[1753886060949,0.00535,118150.0,118140.0,0.0904773]
[1753886061189,0.07127,118150.0,118140.0,0.2211173]
[1753886061414,0.11263317,118150.0,118140.0,0.2211173]
[1753886061642,0.07801317,118150.0,118140.0,0.2211173]
[1753886062258,0.09493979,118150.0,118140.0,0.2211173]
[1753886062667,0.13802389,118150.0,118140.0,0.1366]
[1753886063122,0.06955,118150.0,118140.0,0.1366]
[1753886063349,0.04511331,118150.0,118140.0,0.25681]
[1753886063565,0.06204051,118150.0,118140.0,0.1366]
[1753886063965,0.06204051,118150.0,118140.0,0.1346]
[1753886064175,0.12676051,118150.0,118140.0,0.1346]
[1753886064392,0.11929684,118150.0,118140.0,0.1346]
[1753886064618,0.08467684,118150.0,118140.0,0.1306]
[1753886064860,0.09314051,118150.0,118140.0,0.1306]
[1753886065081,0.09314051,118150.0,118140.0,0.1316]
[1753886065295,0.08467684,118150.0,118140.0,0.1316]
[1753886065981,0.09314058,118150.0,118140.0,0.1316]
[1753886066204,0.65134678,118150.0,118140.0,0.001]
[1753886066658,0.64288325,118150.0,118140.0,0.001]
[1753886067721,0.28857389,118150.0,118140.0,0.001]
[1753886069715,0.25395389,118150.0,118140.0,0.001]
[1753886070447,0.24549015,118150.0,118140.0,0.001]
[1753886070794,0.60718786,118150.0,118140.0,0.001]
[1753886071128,0.77240786,118150.0,118140.0,0.001]
[1753886073168,0.73778786,118150.0,118140.0,0.001]
[1753886074298,0.74571727,118150.0,118140.0,0.001]
[1753886076004,0.78033727,118150.0,118140.0,0.001]
[1753886076466,0.78034329,118150.0,118140.0,0.001]
[1753886076914,0.5843828,118150.0,118140.0,0.001]
[1753886077139,0.56274618,118150.0,118140.0,0.11955]
[1753886077372,0.56274618,118150.0,118140.0,0.12155]
[1753886077373,0.01607149,118150.0,118140.0,0.12155]
[1753886077603,0.00813544,118150.0,118140.0,0.12476]
[1753886077846,0.01013544,118150.0,118140.0,0.80332568]
[1753886078046,0.01013544,118150.0,118140.0,0.57210797]
[1753886078262,0.01013544,118150.0,118140.0,0.4028173]
[1753886078487,0.0022,118150.0,118140.0,0.4028173]
[1753886078741,0.0002,118150.0,118140.0,0.4028173]
[1753886078971,0.0012,118150.0,118140.0,0.4038173]
[1753886079906,0.0012,118150.0,118140.0,0.93480568]
[1753886080628,0.0012,118150.0,118140.0,0.96019841]
[1753886080872,0.0012,118150.0,118140.0,1.67934514]
[1753886081105,0.0012,118150.0,118140.0,1.31764743]
[1753886082241,0.0002,118150.0,118140.0,1.31764743]
[1753886082466,0.0002,118150.0,118140.0,1.18716743]
[1753886082729,0.0002,118150.0,118140.0,1.31972743]
[1753886082954,0.0002,118150.0,118140.0,1.31089656]
[1753886083177,0.0002,118150.0,118140.0,0.95810972]
[1753886083392,0.0002,118150.0,118140.0,1.31097656]
[1753886084309,0.0002,118150.0,118140.0,1.30997656]
[1753886086346,0.0002,118150.0,118140.0,1.31497656]
[1753886087910,0.0002,118150.0,118140.0,0.6193373]
[1753886088145,0.01069317,118150.0,118140.0,0.3425473]
[1753886089025,0.01069324,118150.0,118140.0,0.3405473]
[1753886089483,0.00223,118150.0,118140.0,0.3335473]
[1753886089710,0.00223,118150.0,118140.0,0.3355473]
[1753886089931,0.01069324,118150.0,118140.0,0.3355473]
[1753886090159,0.00223,118150.0,118140.0,0.3355473]
[1753886090658,0.01069331,118150.0,118140.0,0.3355473]
[1753886091024,0.01915669,118150.0,118140.0,0.3355473]
[1753886092124,0.2085803,118150.0,118140.0,0.0864773]
[1753886092347,0.2085803,118150.0,118140.0,0.13248]
[1753886092348,0.62656714,118150.0,118140.0,0.13248]
[1753886092563,0.60964045,118150.0,118140.0,0.002]
[1753886093204,0.63297692,118150.0,118140.0,0.002]
[1753886093430,0.0084646,118130.0,118120.0,0.13048]
[1753886093659,0.61167183,118130.0,118120.0,0.00014548]
[1753886093891,0.98367183,118130.0,118120.0,0.00014548]
[1753886095396,1.11419183,118130.0,118120.0,0.00014548]
[1753886095648,1.11619183,118130.0,118120.0,0.00014548]
[1753886097529,1.40066913,118130.0,118120.0,0.00014548]
[1753886097739,1.68514643,118130.0,118120.0,0.00014548]
[1753886097945,6.70259545,118130.0,118120.0,0.00014548]
[1753886098381,6.59585246,118130.0,118120.0,0.00014548]
[1753886098588,6.6478406,118130.0,118120.0,0.00014548]
[1753886098796,6.29297376,118130.0,118120.0,0.00014548]
[1753886098989,6.6458406,118130.0,118120.0,0.00014548]
[1753886099250,6.6478406,118130.0,118120.0,0.00014548]
[1753886099864,6.7323179,118130.0,118120.0,0.00014548]
[1753886100014,6.6017979,118130.0,118120.0,0.00014548]
[1753886100245,6.22444614,118130.0,118120.0,0.00014548]
[1753886100661,6.22440614,118130.0,118120.0,0.00014548]
[1753886100919,6.09392614,118130.0,118120.0,0.00014548]
[1753886101623,6.22444614,118130.0,118120.0,0.00014548]
[1753886101863,6.20066913,118130.0,118120.0,0.00014548]
[1753886102558,1.28514643,118130.0,118120.0,0.00014548]
[1753886102783,6.28514643,118130.0,118120.0,0.00014548]
[1753886103486,6.30259545,118130.0,118120.0,0.00014548]
[1753886104933,6.42434621,118130.0,118120.0,0.00014548]
[1753886105585,6.42442621,118130.0,118120.0,0.00014548]
[1753886105772,6.38980621,118130.0,118120.0,0.00014548]
[1753886106057,6.42442621,118130.0,118120.0,0.00014548]
[1753886106254,6.44187523,118130.0,118120.0,0.00014548]
[1753886106689,6.42442621,118130.0,118120.0,0.00014548]
[1753886106951,6.44186551,118130.0,118120.0,0.00014548]
[1753886107134,6.41815815,118130.0,118120.0,0.00014548]
[1753886108075,6.50263545,118130.0,118120.0,0.00014548]
[1753886108314,6.61815815,118130.0,118120.0,0.00014548]
[1753886108544,6.69406815,118130.0,118120.0,0.00014548]
[1753886108766,6.71906815,118130.0,118120.0,0.00014548]
[1753886109235,6.76483374,118130.0,118120.0,0.00014548]
[1753886109462,6.40615565,118130.0,118120.0,0.00014548]
[1753886109667,6.61251316,118130.0,118120.0,0.00014548]
[1753886109894,6.65330022,118130.0,118120.0,0.00014548]
[1753886110129,6.60554545,118130.0,118120.0,0.00014548]
[1753886110355,6.58809643,118130.0,118120.0,0.00014548]
[1753886110931,6.60554545,118130.0,118120.0,0.00014548]
[1753886111400,6.62368851,118130.0,118120.0,0.00014548]
[1753886111889,6.27082167,118130.0,118120.0,0.00014548]
[1753886112132,6.40865121,118130.0,118120.0,0.00014548]
[1753886112362,6.42880121,118130.0,118120.0,0.00014548]
[1753886112595,6.41065815,118130.0,118120.0,0.00014548]
[1753886113585,1.41065815,118130.0,118120.0,0.00014548]
[1753886113816,6.49513545,118130.0,118120.0,0.00014548]
[1753886114052,6.50302824,118130.0,118120.0,0.00014548]
[1753886114298,5.46380114,118130.0,118120.0,0.12196548]
[1753886114536,5.32880863,118130.0,118120.0,0.12503548]
[1753886114777,6.01378183,118130.0,118120.0,0.12503548]
[1753886115009,6.03746239,118130.0,118120.0,0.12503548]
[1753886115241,6.03746429,118130.0,118120.0,0.12503548]
[1753886115479,5.69746429,118130.0,118120.0,0.12503548]
[1753886115713,0.69746429,118130.0,118120.0,0.12503548]
[1753886115967,1.02167535,118130.0,118120.0,0.12503548]
[1753886116209,1.03746532,118130.0,118120.0,0.12503548]
[1753886116452,1.03750532,118130.0,118120.0,0.12503548]
[1753886116683,6.30939992,118130.0,118120.0,0.00014548]
[1753886116923,6.54883582,118130.0,118120.0,0.00014548]
[1753886117163,6.75094831,118130.0,118120.0,0.00014548]
[1753886117631,6.74502492,118130.0,118120.0,0.00014548]
[1753886117863,6.7509491,118130.0,118120.0,0.00014548]
[1753886118061,6.74502492,118130.0,118120.0,0.00014548]
[1753886118345,6.7509498,118130.0,118120.0,0.00014548]
[1753886118587,6.74502492,118130.0,118120.0,0.00014548]
[1753886118843,6.75094987,118130.0,118120.0,0.00014548]
[1753886119097,6.77594987,118130.0,118120.0,0.00014548]
[1753886119558,6.79875449,118130.0,118120.0,0.00014548]
[1753886121460,6.82903133,118130.0,118120.0,0.00014548]
[1753886121676,6.82905085,118130.0,118120.0,0.00014548]
[1753886122314,6.80624623,118130.0,118120.0,0.00014548]
[1753886123345,6.85166149,118130.0,118120.0,0.00014548]
[1753886124351,6.82138465,118130.0,118120.0,0.00014548]
[1753886124694,6.84684165,118130.0,118120.0,0.00014548]
[1753886126628,6.89775165,118130.0,118120.0,0.00014548]
[1753886127223,0.73626653,118110.0,118100.0,0.11973]
[1753886127427,6.37694928,118110.0,118100.0,0.12188]
[1753886127863,6.35409305,118110.0,118100.0,0.12188]
[1753886128269,6.37694928,118110.0,118100.0,0.12188]
[1753886128762,6.35409305,118110.0,118100.0,0.12511]
[1753886128964,6.35203305,118110.0,118100.0,0.12511]
[1753886129547,5.86851575,118110.0,118100.0,0.18661]
[1753886129759,0.23508891,118110.0,118100.0,0.18661]
[1753886129992,0.55691293,118110.0,118100.0,0.18661]
[1753886130168,0.7225822,118110.0,118100.0,0.18661]
[1753886130511,0.70625261,118110.0,118100.0,0.18661]
[1753886130719,0.70571248,118110.0,118100.0,0.18661]
[1753886131171,1.05857932,118110.0,118100.0,0.18661]
[1753886131581,0.70571248,118110.0,118100.0,0.18661]
[1753886133184,0.52791191,118110.0,118100.0,0.18661]
[1753886133437,0.70571147,118110.0,118100.0,0.18661]
[1753886133652,0.72264748,118110.0,118100.0,0.18661]
[1753886133893,0.7057152,118110.0,118100.0,0.18661]
[1753886134794,1.05858204,118110.0,118100.0,0.18661]
[1753886135232,1.05858274,118110.0,118100.0,0.18661]
[1753886136419,1.05265217,118110.0,118100.0,0.18661]
[1753886136630,1.05859958,118110.0,118100.0,0.18661]
[1753886137932,0.70573274,118110.0,118100.0,0.18661]
[1753886139289,1.05859958,118110.0,118100.0,0.18661]
[1753886139500,1.02886949,118110.0,118100.0,0.18661]
[1753886139929,1.0204031,118110.0,118100.0,0.18661]
[1753886141793,0.36764237,118110.0,118100.0,0.18661]
[1753886142027,0.69293536,118110.0,118100.0,0.18661]
[1753886142443,0.72269218,118110.0,118100.0,0.18661]
[1753886142730,0.71475703,118110.0,118100.0,0.18661]
[1753886142997,1.07668128,118110.0,118100.0,0.18661]
[1753886143246,1.06081097,118110.0,118100.0,0.18661]
[1753886144203,1.0438784,118110.0,118100.0,0.18661]
[1753886144421,1.02946058,118110.0,118100.0,0.18661]
[1753886145521,0.64936035,118110.0,118100.0,0.18661]
[1753886145741,1.0112846,118110.0,118100.0,0.18661]
[1753886146230,1.0133446,118110.0,118100.0,0.12188]
[1753886146511,0.17781526,118100.0,118090.0,0.19695]
[1753886146755,0.56357119,118100.0,118090.0,0.1991]
[1753886146991,0.67025951,118100.0,118090.0,0.18253]
[1753886147972,0.67025951,118100.0,118090.0,0.1472]
[1753886147973,0.67231951,118100.0,118090.0,0.1472]
[1753886148206,1.01231951,118100.0,118090.0,0.11395]
[1753886148721,1.03831549,118100.0,118090.0,0.11395]
[1753886149465,0.17783032,118090.0,118080.0,0.27637]
[1753886149694,0.54181457,118090.0,118080.0,0.27852]
[1753886149919,0.69617009,118090.0,118080.0,0.148]
[1753886150643,1.02027974,118090.0,118080.0,0.11395]
[1753886150878,0.51784538,118080.0,118070.0,0.11395]
[1753886151098,0.17786043,118070.0,118060.0,0.27767]
[1753886151321,0.54184468,118070.0,118060.0,0.27982]
[1753886151778,0.67236468,118070.0,118060.0,0.1493]
[1753886152227,0.67236468,118070.0,118060.0,0.15253]
[1753886152466,0.1778755,118060.0,118050.0,0.2477]
[1753886152656,0.5482698,118060.0,118050.0,0.31155]
[1753886152888,0.31686555,118060.0,118050.0,0.06708]
[1753886153370,0.31686555,118060.0,118050.0,0.18103]
[1753886153573,0.35057237,118060.0,118050.0,0.18103]
[1753886153783,0.35062078,118060.0,118050.0,0.18103]
[1753886154451,0.35062078,118060.0,118050.0,0.18203]
[1753886155370,0.34421073,118060.0,118050.0,0.15493]
[1753886155597,0.34421073,118060.0,118050.0,0.11795]
[1753886156061,0.34421073,118060.0,118050.0,0.11999]
[1753886156274,0.69796325,118060.0,118050.0,0.15049]
[1753886156500,0.34421073,118060.0,118050.0,0.15351]
[1753886161143,0.34215073,118060.0,118050.0,0.18551]
[1753886161337,0.18121483,118060.0,118050.0,0.18551]
[1753886161584,0.18968495,118060.0,118050.0,0.18551]
[1753886162031,0.35062092,118060.0,118050.0,0.18551]
[1753886163922,0.35066092,118060.0,118050.0,0.18551]
[1753886164124,0.22010092,118060.0,118050.0,0.18551]
[1753886164334,0.35066092,118060.0,118050.0,0.18551]
[1753886164560,0.69792332,118060.0,118050.0,0.18249]
[1753886164823,0.70093332,118060.0,118050.0,0.004]
[1753886165983,0.70093332,118060.0,118050.0,0.003]
[1753886165984,1.22223062,118060.0,118050.0,0.003]
[1753886166187,1.24599816,118060.0,118050.0,0.003]
[1753886166396,6.24599816,118060.0,118050.0,0.003]
[1753886166602,0.19484812,118040.0,118030.0,0.15035]
[1753886166806,0.32738812,118040.0,118030.0,0.15239]
[1753886167019,0.31891699,118040.0,118030.0,0.18651]
[1753886167478,0.31693699,118040.0,118030.0,0.18651]
[1753886168347,0.29999409,118040.0,118030.0,0.18651]
[1753886168620,0.30197409,118040.0,118030.0,0.18651]
[1753886169075,0.31585798,118040.0,118030.0,0.18651]
[1753886169994,0.31783798,118040.0,118030.0,0.18349]
[1753886170226,0.31783798,118040.0,118030.0,0.15239]
[1753886171136,0.31783798,118040.0,118030.0,0.18671]
[1753886171348,0.31585798,118040.0,118030.0,0.18671]
[1753886171560,0.32378741,118040.0,118030.0,0.18671]
[1753886171779,0.32478741,118040.0,118030.0,0.18671]
[1753886172521,0.32478697,118040.0,118030.0,0.18671]
[1753886173642,0.31685798,118040.0,118030.0,0.18671]
[1753886174099,0.32478654,118040.0,118030.0,0.18671]
[1753886174545,0.31685798,118040.0,118030.0,0.18671]
[1753886175691,0.6792016,118040.0,118030.0,0.18671]
[1753886176091,0.68713001,118040.0,118030.0,0.18671]
[1753886176417,0.68712982,118040.0,118030.0,0.18671]
[1753886177545,0.33380102,118040.0,118030.0,0.18671]
[1753886179009,0.33280102,118040.0,118030.0,0.18671]
[1753886179451,0.34127272,118040.0,118030.0,0.18671]
[1753886179671,0.01586389,118040.0,118030.0,0.18771]
[1753886179886,0.33372203,118060.0,118040.0,0.0657]
[1753886180174,0.33372203,118060.0,118050.0,0.18921]
[1753886180175,0.54503734,118060.0,118050.0,0.18921]
[1753886180609,0.54503734,118060.0,118050.0,0.55155362]
[1753886180610,0.05753731,118060.0,118050.0,0.55155362]
[1753886180826,0.066007,118060.0,118050.0,0.55155362]
[1753886181043,0.05753731,118060.0,118050.0,0.55155362]
[1753886181519,0.05953731,118060.0,118050.0,0.55155362]
[1753886181955,0.06800707,118060.0,118050.0,0.18921]
[1753886182178,0.09341736,118060.0,118050.0,0.18921]
[1753886182405,0.60920669,118060.0,118050.0,0.15359]
[1753886182679,0.60820669,118060.0,118050.0,0.15359]
[1753886182892,0.07645734,118060.0,118050.0,0.15559]
[1753886183117,0.18809731,118060.0,118050.0,0.19121]
[1753886183331,0.05753731,118060.0,118050.0,0.19121]
[1753886183577,0.05753731,118060.0,118050.0,0.36062973]
[1753886183771,0.05753731,118060.0,118050.0,0.19121]
[1753886184006,0.05916473,118060.0,118050.0,0.19121]
[1753886184225,0.06709912,118060.0,118050.0,0.19221]
[1753886184433,0.04222485,118060.0,118050.0,0.19221]
[1753886184871,0.03375523,118060.0,118050.0,0.19221]
[1753886185309,0.05069483,118060.0,118050.0,0.19221]
[1753886185527,0.04222492,118060.0,118050.0,0.19221]
[1753886185956,0.03375523,118060.0,118050.0,0.36162973]
[1753886186179,0.03375523,118060.0,118050.0,0.80845065]
[1753886186394,0.03375523,118060.0,118050.0,0.84233357]
[1753886186847,0.03375523,118060.0,118050.0,0.91019632]
[1753886187723,0.03375523,118060.0,118050.0,1.25019632]
[1753886188034,4.841e-05,118060.0,118050.0,1.26764534]
[1753886188881,4.841e-05,118060.0,118050.0,1.25878621]
[1753886189089,4.841e-05,118060.0,118050.0,1.24133719]
[1753886189297,4.841e-05,118060.0,118050.0,1.17347444]
[1753886189509,4.841e-05,118060.0,118050.0,1.17347458]
[1753886190145,4.841e-05,118060.0,118050.0,1.16500425]
[1753886190371,4.841e-05,118060.0,118050.0,0.93360892]
[1753886190581,4.841e-05,118060.0,118050.0,0.93360878]
[1753886190815,4.841e-05,118060.0,118050.0,0.94207933]
[1753886191422,4.841e-05,118060.0,118050.0,1.29556382]
[1753886191824,4.841e-05,118060.0,118050.0,1.28709327]
[1753886192045,4.841e-05,118060.0,118050.0,1.29556396]
[1753886193020,4.841e-05,118060.0,118050.0,1.30403458]
[1753886193429,4.841e-05,118060.0,118050.0,1.31250506]
[1753886193646,4.841e-05,118060.0,118050.0,1.30403458]
[1753886193855,4.841e-05,118060.0,118050.0,1.31250463]
[1753886194323,4.841e-05,118060.0,118050.0,1.30403415]
[1753886194741,4.841e-05,118060.0,118050.0,1.31250463]
[1753886203207,4.841e-05,118060.0,118050.0,1.68343814]
[1753886207454,4.841e-05,118060.0,118050.0,1.71806293]
[1753886207883,4.841e-05,118060.0,118050.0,1.68343814]
[1753886208115,4.841e-05,118060.0,118050.0,1.32995365]
[1753886208329,4.841e-05,118060.0,118050.0,1.19939365]
[1753886208476,4.841e-05,118060.0,118050.0,1.32991365]
[1753886210947,4.841e-05,118060.0,118050.0,1.33841645]
[1753886211763,4.841e-05,118060.0,118050.0,1.19044743]
[1753886211962,0.00205841,118060.0,118050.0,1.31590743]
[1753886212394,0.00205841,118060.0,118050.0,0.95392014]
[1753886212604,0.00205841,118060.0,118050.0,1.31590743]
[1753886213013,0.00205841,118060.0,118050.0,1.31799743]
[1753886213273,0.00205841,118060.0,118050.0,1.32114743]
[1753886213691,4.841e-05,118060.0,118050.0,1.32114743]
[1753886213900,4.841e-05,118060.0,118050.0,0.95916014]
[1753886214103,4.841e-05,118060.0,118050.0,1.32114743]
[1753886216376,4.841e-05,118060.0,118050.0,0.95916014]
[1753886216598,0.00217841,118060.0,118050.0,1.32114743]
[1753886217488,4.841e-05,118060.0,118050.0,1.32114743]
[1753886220929,4.841e-05,118060.0,118050.0,1.32014743]
[1753886221405,4.841e-05,118060.0,118050.0,1.32114743]
[1753886221667,0.06923,118110.0,118050.0,1.72609338]
[1753886221907,0.06923,118110.0,118100.0,0.61893655]
[1753886221908,0.02387288,118110.0,118100.0,0.61893655]
[1753886222158,0.00798935,118110.0,118100.0,0.92410385]
[1753886222384,0.01011935,118110.0,118100.0,0.91269696]
[1753886222638,0.01011935,118110.0,118100.0,0.91269703]
[1753886222865,0.01011935,118110.0,118100.0,0.92116414]
[1753886223084,0.03881413,118110.0,118100.0,0.91269703]
[1753886223338,0.01011935,118110.0,118100.0,0.92116414]
[1753886223798,0.01011935,118110.0,118100.0,0.91269703]
[1753886224035,0.01011935,118110.0,118100.0,0.92963096]
[1753886224267,0.01011935,118110.0,118100.0,0.92963104]
[1753886224500,0.01011935,118110.0,118100.0,0.91269703]
[1753886224737,0.01010874,118110.0,118100.0,0.90622985]
[1753886224959,0.01010874,118110.0,118100.0,0.8977626]
[1753886225207,0.01010874,118110.0,118100.0,0.926164]
[1753886225447,0.01010874,118110.0,118100.0,0.91769703]
[1753886225668,0.03983649,118110.0,118100.0,0.92616407]
[1753886225935,0.03983649,118110.0,118100.0,0.946038]
[1753886226170,0.03770649,118110.0,118100.0,0.979038]
[1753886226622,0.02977625,118110.0,118100.0,0.979038]
[1753886228880,0.02977625,118110.0,118100.0,1.69847431]
[1753886228881,4.85e-05,118110.0,118100.0,1.69847431]
[1753886229018,4.85e-05,118110.0,118100.0,1.33648702]
[1753886229704,4.85e-05,118110.0,118100.0,1.33448702]
[1753886230145,4.85e-05,118110.0,118100.0,1.33648702]
[1753886230778,4.85e-05,118110.0,118100.0,1.33348702]
[1753886231107,4.85e-05,118110.0,118100.0,1.33748702]
[1753886235187,4.85e-05,118110.0,118100.0,1.69947431]
[1753886235405,4.85e-05,118110.0,118100.0,1.74973829]
[1753886235851,4.85e-05,118110.0,118100.0,1.387751]
[1753886237988,4.85e-05,118110.0,118100.0,1.362711]
[1753886238198,4.85e-05,118110.0,118100.0,1.232271]
[1753886238399,4.85e-05,118110.0,118100.0,1.00072371]
[1753886238599,4.85e-05,118110.0,118100.0,1.362711]
[1753886239012,4.85e-05,118110.0,118100.0,1.00072371]
[1753886239233,4.85e-05,118110.0,118100.0,1.362711]
[1753886241721,0.0053885,118110.0,118100.0,0.77260071]
[1753886241943,0.0717085,118110.0,118100.0,0.42413374]
[1753886242180,0.0053885,118110.0,118100.0,0.78612103]
[1753886242386,0.0053885,118110.0,118100.0,0.90147103]
[1753886242598,0.0021785,118110.0,118100.0,0.90349103]
[1753886242792,4.85e-05,118110.0,118100.0,0.97183103]
[1753886243440,4.85e-05,118110.0,118100.0,0.93963103]
[1753886244320,0.0021785,118110.0,118100.0,0.90349103]
[1753886244758,0.0021785,118110.0,118100.0,0.90643103]
[1753886245664,4.85e-05,118110.0,118100.0,0.96783103]
[1753886246154,0.0022185,118110.0,118100.0,0.57534374]
[1753886246395,0.0022185,118110.0,118100.0,0.93733103]
[1753886248327,4.85e-05,118110.0,118100.0,0.93733103]
[1753886249715,4.85e-05,118110.0,118100.0,0.97013103]
[1753886249981,4.85e-05,118110.0,118100.0,0.93733103]
[1753886250210,0.0022185,118110.0,118100.0,0.90349103]
[1753886250454,0.0711385,118110.0,118100.0,0.39026531]
[1753886250702,0.1040385,118110.0,118100.0,0.2209173]
[1753886250942,0.1040385,118110.0,118100.0,0.40719981]
[1753886251158,0.0694185,118110.0,118100.0,0.7691871]
[1753886251579,0.0694185,118110.0,118100.0,0.77765421]
[1753886252053,0.0694185,118110.0,118100.0,0.76918717]
[1753886252304,0.0694185,118110.0,118100.0,0.77765428]
[1753886252520,0.0694185,118110.0,118100.0,0.58290459]
[1753886252778,0.0694185,118110.0,118100.0,0.76071992]
[1753886253029,0.0694185,118110.0,118100.0,0.7522526]
[1753886253268,0.07734777,118110.0,118100.0,0.7522526]
[1753886254177,0.07734777,118110.0,118100.0,0.76072]
[1753886254426,0.07734777,118110.0,118100.0,0.76918718]
[1753886254602,0.07734777,118110.0,118100.0,0.76072]
[1753886254825,0.07734777,118110.0,118100.0,0.89387732]
[1753886255075,0.07734777,118110.0,118100.0,0.90234457]
[1753886255319,0.04134777,118110.0,118100.0,0.91081161]
[1753886255568,0.00797777,118110.0,118100.0,0.9244085]
[1753886255814,4.85e-05,118110.0,118100.0,0.9873085]
[1753886256067,4.85e-05,118110.0,118100.0,1.34475752]
[1753886256533,4.85e-05,118110.0,118100.0,1.37040168]
[1753886262269,4.85e-05,118110.0,118100.0,1.00841439]
[1753886262476,4.85e-05,118110.0,118100.0,1.37040168]
[1753886264445,4.85e-05,118110.0,118100.0,1.21431752]